[Event "Titled Tuesday Blitz June 20 Early 2023"]
[White "Bacrot, Etienne"]
[Black "Morgunov, Anatoly"]
[WhiteFideId "605506"]
[BlackFideId "4145909"]
[WhiteElo "2672"]
[BlackElo "2237"]
[Result "1-0"]
[Round "1"]
[TimeControl "180+2"]
[Date "2023.06.20"]
[WhiteClock "0:00:26"]
[BlackClock "0:00:05"]
[Board "53"]

1. e4 {[%clk 0:03:00]}  e6 {[%clk 0:03:00]} 2. d4 {[%clk 0:03:00]}  d5 {[%clk 0:02:58]} 3. Nd2 {[%clk 0:02:59]}  c5 {[%clk 0:02:57]} 4. exd5 {[%clk 0:02:59]}  Qxd5 {[%clk 0:02:58]} 5. Ngf3 {[%clk 0:02:59]}  cxd4 {[%clk 0:02:58]} 6. Bc4 {[%clk 0:02:58]}  Qd6 {[%clk 0:02:58]} 7. O-O {[%clk 0:02:58]}  Nc6 {[%clk 0:02:57]} 8. Nb3 {[%clk 0:02:58]}  Nf6 {[%clk 0:02:58]} 9. Nbxd4 {[%clk 0:02:55]}  Nxd4 {[%clk 0:02:59]} 10. Qxd4 {[%clk 0:02:54]}  Qxd4 {[%clk 0:02:59]} 11. Nxd4 {[%clk 0:02:55]}  Bd7 {[%clk 0:03:00]} 12. Bf4 {[%clk 0:02:52]}  a6 {[%clk 0:02:55]} 13. Rfd1 {[%clk 0:02:51]}  Rc8 {[%clk 0:02:54]} 14. Be2 {[%clk 0:02:50]}  Bc5 {[%clk 0:02:54]} 15. c3 {[%clk 0:02:50]}  O-O {[%clk 0:02:42]} 16. Be5 {[%clk 0:02:26]}  Bxd4 {[%clk 0:02:36]} 17. Rxd4 {[%clk 0:02:24]}  Bc6 {[%clk 0:02:36]} 18. Rad1 {[%clk 0:02:21]}  Nd5 {[%clk 0:02:15]} 19. c4 {[%clk 0:02:21]}  Nb6 {[%clk 0:02:00]} 20. b3 {[%clk 0:02:19]}  f6 {[%clk 0:01:58]} 21. Bd6 {[%clk 0:02:19]}  Rfd8 {[%clk 0:01:53]} 22. Bg4 {[%clk 0:02:11]}  Kf7 {[%clk 0:01:50]} 23. Kf1 {[%clk 0:02:03]}  Nd7 {[%clk 0:01:33]} 24. Ba3 {[%clk 0:01:59]}  f5 {[%clk 0:01:22]} 25. Bh5+ {[%clk 0:01:49]}  g6 {[%clk 0:01:22]} 26. Bf3 {[%clk 0:01:48]}  Ke8 {[%clk 0:01:13]} 27. Rd6 {[%clk 0:01:31]}  Bxf3 {[%clk 0:00:33]} 28. Rxe6+ {[%clk 0:01:28]}  Kf7 {[%clk 0:00:33]} 29. Re7+ {[%clk 0:01:28]}  Kf6 {[%clk 0:00:33]} 30. Rdxd7 {[%clk 0:01:14]}  Rxd7 {[%clk 0:00:28]} 31. Rxd7 {[%clk 0:01:14]}  Bc6 {[%clk 0:00:27]} 32. Rxh7 {[%clk 0:01:13]}  Re8 {[%clk 0:00:25]} 33. Bb2+ {[%clk 0:01:09]}  Ke6 {[%clk 0:00:23]} 34. Rg7 {[%clk 0:01:06]}  Be4 {[%clk 0:00:20]} 35. Rxg6+ {[%clk 0:00:59]}  Kf7 {[%clk 0:00:20]} 36. Rg7+ {[%clk 0:00:58]}  Kf8 {[%clk 0:00:21]} 37. Rd7 {[%clk 0:00:55]}  Re6 {[%clk 0:00:18]} 38. f3 {[%clk 0:00:52]}  Bc6 {[%clk 0:00:17]} 39. Rd2 {[%clk 0:00:51]}  Rg6 {[%clk 0:00:17]} 40. Kf2 {[%clk 0:00:50]}  Kf7 {[%clk 0:00:17]} 41. Be5 {[%clk 0:00:48]}  Re6 {[%clk 0:00:17]} 42. Bf4 {[%clk 0:00:49]}  b5 {[%clk 0:00:16]} 43. cxb5 {[%clk 0:00:47]}  Bxb5 {[%clk 0:00:16]} 44. h4 {[%clk 0:00:47]}  Rc6 {[%clk 0:00:12]} 45. h5 {[%clk 0:00:46]}  Rc8 {[%clk 0:00:09]} 46. g4 {[%clk 0:00:43]}  fxg4 {[%clk 0:00:09]} 47. fxg4 {[%clk 0:00:44]}  Rf8 {[%clk 0:00:09]} 48. Kg3 {[%clk 0:00:44]}  Ke6 {[%clk 0:00:09]} 49. Rf2 {[%clk 0:00:42]}  Rh8 {[%clk 0:00:08]} 50. Bc1 {[%clk 0:00:39]}  Bd3 {[%clk 0:00:07]} 51. Bb2 {[%clk 0:00:39]}  Rh7 {[%clk 0:00:07]} 52. Rf3 {[%clk 0:00:35]}  Bb1 {[%clk 0:00:07]} 53. a4 {[%clk 0:00:34]}  Kd7 {[%clk 0:00:08]} 54. Kh4 {[%clk 0:00:33]}  Bc2 {[%clk 0:00:07]} 55. Re3 {[%clk 0:00:33]}  Kd6 {[%clk 0:00:06]} 56. g5 {[%clk 0:00:33]}  Bf5 {[%clk 0:00:04]} 57. Rg3 {[%clk 0:00:31]}  Bc2 {[%clk 0:00:03]} 58. g6 {[%clk 0:00:30]}  Bxg6 {[%clk 0:00:03]} 59. Rxg6+ {[%clk 0:00:30]}  Kd5 {[%clk 0:00:03]} 60. Rg7 {[%clk 0:00:28]}  Rh6 {[%clk 0:00:02]} 61. Kg5 {[%clk 0:00:28]}  Rh8 {[%clk 0:00:02]} 62. Rd7+ {[%clk 0:00:28]}  Ke4 {[%clk 0:00:02]} 63. Bxh8 {[%clk 0:00:27]}  Kf3 {[%clk 0:00:03]} 64. Rd4 {[%clk 0:00:26]}  a5 {[%clk 0:00:03]} 65. h6 {[%clk 0:00:27]}  Kf2 {[%clk 0:00:02]} 66. h7 {[%clk 0:00:27]}  Kg2 {[%clk 0:00:03]} 67. Bg7 {[%clk 0:00:27]}  Kh3 {[%clk 0:00:04]} 68. h8=Q+ {[%clk 0:00:27]}  Kg2 {[%clk 0:00:05]} 69. b4 {[%clk 0:00:27]}  Kf1 {[%clk 0:00:06]} 70. Qh2 {[%clk 0:00:26]}  axb4 {[%clk 0:00:05]} 71. Rd1# {[%clk 0:00:26]} 1-0


[Site "https://www.chess.com"]

[Event "Titled Tuesday Blitz June 20 Early 2023"]
[White "Elsa167"]
[Black "Mattheii"]
[WhiteElo "2850"]
[BlackElo "2477"]
[Result "1-0"]
[Round "1"]
[TimeControl "180+2"]
[Date "2023.06.20"]
[WhiteClock "0:01:30"]
[BlackClock "0:00:25"]
[Board "57"]

1. e4 {[%clk 0:03:00]}  c5 {[%clk 0:02:57]} 2. Nf3 {[%clk 0:03:00]}  Nc6 {[%clk 0:02:57]} 3. Bc4 {[%clk 0:02:58]}  d6 {[%clk 0:02:50]} 4. O-O {[%clk 0:02:58]}  g6 {[%clk 0:02:44]} 5. c3 {[%clk 0:02:54]}  Bg7 {[%clk 0:02:24]} 6. d4 {[%clk 0:02:53]}  cxd4 {[%clk 0:02:25]} 7. cxd4 {[%clk 0:02:54]}  Nf6 {[%clk 0:02:23]} 8. d5 {[%clk 0:02:45]}  Nb8 {[%clk 0:02:12]} 9. Nc3 {[%clk 0:02:44]}  O-O {[%clk 0:02:11]} 10. h3 {[%clk 0:02:42]}  a6 {[%clk 0:02:05]} 11. a4 {[%clk 0:02:37]}  Nbd7 {[%clk 0:02:01]} 12. Be3 {[%clk 0:02:33]}  Ne8 {[%clk 0:01:49]} 13. Bd4 {[%clk 0:02:26]}  Bxd4 {[%clk 0:01:29]} 14. Qxd4 {[%clk 0:02:27]}  f6 {[%clk 0:01:26]} 15. a5 {[%clk 0:02:13]}  Ne5 {[%clk 0:01:18]} 16. Nd2 {[%clk 0:02:10]}  Bd7 {[%clk 0:01:13]} 17. Be2 {[%clk 0:02:06]}  Rc8 {[%clk 0:01:10]} 18. f4 {[%clk 0:02:06]}  Nf7 {[%clk 0:01:11]} 19. Nc4 {[%clk 0:02:05]}  Nc7 {[%clk 0:00:51]} 20. Nb6 {[%clk 0:02:05]}  Rb8 {[%clk 0:00:52]} 21. Rac1 {[%clk 0:01:59]}  Qe8 {[%clk 0:00:48]} 22. b4 {[%clk 0:01:54]}  Bb5 {[%clk 0:00:46]} 23. Nxb5 {[%clk 0:01:50]}  Nxb5 {[%clk 0:00:47]} 24. Bxb5 {[%clk 0:01:50]}  Qxb5 {[%clk 0:00:47]} 25. Rc7 {[%clk 0:01:50]}  Rfe8 {[%clk 0:00:44]} 26. Rfc1 {[%clk 0:01:46]}  Qe2 {[%clk 0:00:36]} 27. R7c2 {[%clk 0:01:32]}  Qb5 {[%clk 0:00:36]} 28. Qc4 {[%clk 0:01:31]}  Qxc4 {[%clk 0:00:35]} 29. Rxc4 {[%clk 0:01:32]}  e5 {[%clk 0:00:30]} 30. Nd7 {[%clk 0:01:27]}  exf4 {[%clk 0:00:28]} 31. Nxb8 {[%clk 0:01:27]}  Rxb8 {[%clk 0:00:28]} 32. Rc8+ {[%clk 0:01:28]}  Rxc8 {[%clk 0:00:29]} 33. Rxc8+ {[%clk 0:01:29]}  Kg7 {[%clk 0:00:30]} 34. Rc7 {[%clk 0:01:30]}  g5 {[%clk 0:00:28]} 35. Rxb7 {[%clk 0:01:30]}  Kg6 {[%clk 0:00:25]} 36. b5 {[%clk 0:01:30]} 1-0


[Site "https://www.chess.com"]

[Event "Titled Tuesday Blitz June 20 Early 2023"]
[White "Luna Javier, Edgar Froylan"]
[Black "Ilamparthi A R"]
[WhiteFideId "5120101"]
[BlackFideId "45015775"]
[WhiteElo "2091"]
[BlackElo "2348"]
[Result "0-1"]
[Round "1"]
[TimeControl "180+2"]
[Date "2023.06.20"]
[WhiteClock "0:00:03"]
[BlackClock "0:00:29"]
[Board "58"]

1. d4 {[%clk 0:02:54]}  Nf6 {[%clk 0:02:59]} 2. c4 {[%clk 0:02:53]}  g6 {[%clk 0:02:59]} 3. Nc3 {[%clk 0:02:51]}  Bg7 {[%clk 0:03:00]} 4. e4 {[%clk 0:02:50]}  d6 {[%clk 0:03:00]} 5. f3 {[%clk 0:02:49]}  O-O {[%clk 0:02:59]} 6. Be3 {[%clk 0:02:47]}  c5 {[%clk 0:02:57]} 7. Nge2 {[%clk 0:02:46]}  Nc6 {[%clk 0:02:37]} 8. Qd2 {[%clk 0:02:45]}  cxd4 {[%clk 0:02:22]} 9. Nxd4 {[%clk 0:02:44]}  Nxd4 {[%clk 0:02:23]} 10. Bxd4 {[%clk 0:02:43]}  Be6 {[%clk 0:02:23]} 11. Be2 {[%clk 0:02:36]}  Rc8 {[%clk 0:02:21]} 12. b3 {[%clk 0:02:35]}  Nd7 {[%clk 0:02:19]} 13. Bxg7 {[%clk 0:02:26]}  Kxg7 {[%clk 0:02:20]} 14. Qd4+ {[%clk 0:02:23]}  Kg8 {[%clk 0:02:12]} 15. O-O {[%clk 0:02:24]}  a6 {[%clk 0:02:10]} 16. Rac1 {[%clk 0:02:17]}  Qa5 {[%clk 0:01:58]} 17. Rfd1 {[%clk 0:02:03]}  f5 {[%clk 0:01:45]} 18. Bd3 {[%clk 0:01:37]}  Qc5 {[%clk 0:01:10]} 19. Qf2 {[%clk 0:01:28]}  f4 {[%clk 0:01:03]} 20. Be2 {[%clk 0:01:14]}  Qe5 {[%clk 0:01:01]} 21. Rd2 {[%clk 0:00:58]}  b5 {[%clk 0:00:53]} 22. Qd4 {[%clk 0:00:52]}  bxc4 {[%clk 0:00:50]} 23. bxc4 {[%clk 0:00:42]}  Qxd4+ {[%clk 0:00:50]} 24. Rxd4 {[%clk 0:00:43]}  Ne5 {[%clk 0:00:51]} 25. Na4 {[%clk 0:00:34]}  Rc6 {[%clk 0:00:47]} 26. c5 {[%clk 0:00:31]}  Rfc8 {[%clk 0:00:47]} 27. Rb4 {[%clk 0:00:18]}  dxc5 {[%clk 0:00:47]} 28. Rb7 {[%clk 0:00:18]}  Kf8 {[%clk 0:00:42]} 29. Nb6 {[%clk 0:00:16]}  Rd8 {[%clk 0:00:40]} 30. Bxa6 {[%clk 0:00:13]}  Rdd6 {[%clk 0:00:29]} 31. Rb1 {[%clk 0:00:13]}  c4 {[%clk 0:00:29]} 32. Rb8+ {[%clk 0:00:12]}  Kf7 {[%clk 0:00:29]} 33. a4 {[%clk 0:00:06]}  c3 {[%clk 0:00:29]} 34. a5 {[%clk 0:00:03]}  c2 {[%clk 0:00:29]} 0-1


[Site "https://www.chess.com"]

[Event "Titled Tuesday Blitz June 20 Early 2023"]
[White "Kobo, Ori"]
[Black "Ljukin, Sergei"]
[WhiteFideId "2812320"]
[BlackFideId "14102200"]
[WhiteElo "2454"]
[BlackElo "2312"]
[Result "0-1"]
[Round "1"]
[TimeControl "180+2"]
[Date "2023.06.20"]
[WhiteClock "0:00:12"]
[BlackClock "0:00:09"]
[Board "61"]

1. e4 {[%clk 0:02:58]}  e6 {[%clk 0:03:00]} 2. d4 {[%clk 0:02:56]}  d5 {[%clk 0:03:00]} 3. Nc3 {[%clk 0:02:54]}  Bb4 {[%clk 0:03:00]} 4. Ne2 {[%clk 0:02:55]}  Nc6 {[%clk 0:02:59]} 5. a3 {[%clk 0:02:54]}  Ba5 {[%clk 0:02:59]} 6. b4 {[%clk 0:02:54]}  Bb6 {[%clk 0:02:59]} 7. e5 {[%clk 0:02:55]}  f6 {[%clk 0:02:59]} 8. b5 {[%clk 0:02:46]}  Na5 {[%clk 0:02:21]} 9. Na4 {[%clk 0:02:43]}  fxe5 {[%clk 0:02:14]} 10. Nxb6 {[%clk 0:02:43]}  axb6 {[%clk 0:02:13]} 11. dxe5 {[%clk 0:02:44]}  Ne7 {[%clk 0:02:06]} 12. Nd4 {[%clk 0:02:42]}  c5 {[%clk 0:01:40]} 13. bxc6 {[%clk 0:02:40]}  bxc6 {[%clk 0:01:40]} 14. Bd3 {[%clk 0:02:30]}  O-O {[%clk 0:01:35]} 15. Qh5 {[%clk 0:02:23]}  g6 {[%clk 0:01:34]} 16. Qg5 {[%clk 0:02:11]}  c5 {[%clk 0:01:31]} 17. Nb5 {[%clk 0:02:10]}  c4 {[%clk 0:01:29]} 18. Be2 {[%clk 0:02:10]}  Nf5 {[%clk 0:01:07]} 19. g4 {[%clk 0:01:53]}  Ne7 {[%clk 0:01:04]} 20. h4 {[%clk 0:01:49]}  Nec6 {[%clk 0:01:01]} 21. f4 {[%clk 0:01:42]}  Qxg5 {[%clk 0:00:59]} 22. hxg5 {[%clk 0:01:43]}  Ba6 {[%clk 0:00:57]} 23. Nd6 {[%clk 0:01:41]}  Nd4 {[%clk 0:00:55]} 24. Bd1 {[%clk 0:01:41]}  c3 {[%clk 0:00:42]} 25. Be3 {[%clk 0:01:38]}  Nb5 {[%clk 0:00:40]} 26. Nxb5 {[%clk 0:01:30]}  Bxb5 {[%clk 0:00:41]} 27. Rb1 {[%clk 0:01:19]}  Ba6 {[%clk 0:00:37]} 28. Be2 {[%clk 0:01:06]}  Bxe2 {[%clk 0:00:35]} 29. Kxe2 {[%clk 0:01:07]}  Nc4 {[%clk 0:00:35]} 30. Rb3 {[%clk 0:01:04]}  Rxa3 {[%clk 0:00:35]} 31. Rhb1 {[%clk 0:01:01]}  d4 {[%clk 0:00:25]} 32. Bc1 {[%clk 0:00:56]}  Ra2 {[%clk 0:00:25]} 33. Kd3 {[%clk 0:00:55]}  Nb2+ {[%clk 0:00:17]} 34. Kxd4 {[%clk 0:00:48]}  Na4 {[%clk 0:00:13]} 35. Ra3 {[%clk 0:00:39]}  Rxa3 {[%clk 0:00:12]} 36. Bxa3 {[%clk 0:00:40]}  Rxf4+ {[%clk 0:00:12]} 37. Ke3 {[%clk 0:00:37]}  Rxg4 {[%clk 0:00:12]} 38. Rf1 {[%clk 0:00:37]}  Rxg5 {[%clk 0:00:11]} 39. Rf8+ {[%clk 0:00:34]}  Kg7 {[%clk 0:00:11]} 40. Kd4 {[%clk 0:00:34]}  Rg4+ {[%clk 0:00:11]} 41. Ke3 {[%clk 0:00:34]}  Rg5 {[%clk 0:00:11]} 42. Kd4 {[%clk 0:00:30]}  Rg4+ {[%clk 0:00:11]} 43. Kd3 {[%clk 0:00:28]}  Rg5 {[%clk 0:00:10]} 44. Ra8 {[%clk 0:00:24]}  Nc5+ {[%clk 0:00:09]} 45. Kd4 {[%clk 0:00:24]}  Rg4+ {[%clk 0:00:07]} 46. Kxc3 {[%clk 0:00:25]}  Re4 {[%clk 0:00:07]} 47. Ra7+ {[%clk 0:00:23]}  Kh6 {[%clk 0:00:06]} 48. Bc1+ {[%clk 0:00:20]}  Kh5 {[%clk 0:00:05]} 49. Rxh7+ {[%clk 0:00:20]}  Kg4 {[%clk 0:00:06]} 50. Rg7 {[%clk 0:00:20]}  Kf5 {[%clk 0:00:06]} 51. Kd2 {[%clk 0:00:14]}  Kxe5 {[%clk 0:00:06]} 52. Bb2+ {[%clk 0:00:14]}  Kf5 {[%clk 0:00:06]} 53. Rc7 {[%clk 0:00:14]}  Ra4 {[%clk 0:00:03]} 54. Rf7+ {[%clk 0:00:15]}  Kg5 {[%clk 0:00:03]} 55. Bf6+ {[%clk 0:00:14]}  Kh5 {[%clk 0:00:03]} 56. Rh7+ {[%clk 0:00:14]}  Kg4 {[%clk 0:00:03]} 57. Rh4+ {[%clk 0:00:14]}  Kf5 {[%clk 0:00:04]} 58. Rxa4 {[%clk 0:00:13]}  Nxa4 {[%clk 0:00:03]} 59. Bd8 {[%clk 0:00:14]}  b5 {[%clk 0:00:03]} 60. Kd3 {[%clk 0:00:13]}  Nc5+ {[%clk 0:00:03]} 61. Kd4 {[%clk 0:00:13]}  Na6 {[%clk 0:00:04]} 62. Ba5 {[%clk 0:00:12]}  g5 {[%clk 0:00:04]} 63. Be1 {[%clk 0:00:13]}  Kf4 {[%clk 0:00:04]} 64. Bd2+ {[%clk 0:00:10]}  Kf5 {[%clk 0:00:05]} 65. Be1 {[%clk 0:00:11]}  g4 {[%clk 0:00:05]} 66. Bg3 {[%clk 0:00:11]}  Nb4 {[%clk 0:00:04]} 67. c3 {[%clk 0:00:11]}  Na2 {[%clk 0:00:04]} 68. Kd3 {[%clk 0:00:10]}  e5 {[%clk 0:00:04]} 69. Kc2 {[%clk 0:00:10]}  e4 {[%clk 0:00:05]} 70. Kb2 {[%clk 0:00:11]}  e3 {[%clk 0:00:05]} 71. Kxa2 {[%clk 0:00:11]}  Ke4 {[%clk 0:00:06]} 72. Kb3 {[%clk 0:00:11]}  Kf3 {[%clk 0:00:07]} 73. Bh4 {[%clk 0:00:08]}  g3 {[%clk 0:00:07]} 74. Bxg3 {[%clk 0:00:08]}  Kxg3 {[%clk 0:00:07]} 75. Kb4 {[%clk 0:00:09]}  e2 {[%clk 0:00:08]} 76. Kxb5 {[%clk 0:00:10]}  e1=Q {[%clk 0:00:08]} 77. c4 {[%clk 0:00:11]}  Qe7 {[%clk 0:00:08]} 78. c5 {[%clk 0:00:11]}  Qc7 {[%clk 0:00:08]} 79. c6 {[%clk 0:00:12]}  Kf4 {[%clk 0:00:08]} 80. Kc5 {[%clk 0:00:12]}  Ke5 {[%clk 0:00:09]} 0-1


[Site "https://www.chess.com"]

[Event "Titled Tuesday Blitz June 20 Early 2023"]
[White "Kokoszczynski, Jan"]
[Black "Kovalenko, Igor"]
[WhiteFideId "1174460"]
[BlackFideId "14117908"]
[WhiteElo "2139"]
[BlackElo "2574"]
[Result "1-0"]
[Round "1"]
[TimeControl "180+2"]
[Date "2023.06.20"]
[WhiteClock "0:00:09"]
[BlackClock "0:00:11"]
[Board "62"]

1. c3 {[%clk 0:02:55]}  e5 {[%clk 0:02:54]} 2. d4 {[%clk 0:02:54]}  Nc6 {[%clk 0:02:54]} 3. Nf3 {[%clk 0:02:48]}  e4 {[%clk 0:02:52]} 4. Nfd2 {[%clk 0:02:48]}  f5 {[%clk 0:02:51]} 5. d5 {[%clk 0:02:46]}  Ne5 {[%clk 0:02:51]} 6. Nb3 {[%clk 0:02:39]}  Nf6 {[%clk 0:02:50]} 7. Bf4 {[%clk 0:02:39]}  Ng6 {[%clk 0:02:46]} 8. e3 {[%clk 0:02:26]}  Nxf4 {[%clk 0:02:44]} 9. exf4 {[%clk 0:02:27]}  Bd6 {[%clk 0:02:41]} 10. g3 {[%clk 0:02:27]}  O-O {[%clk 0:02:40]} 11. N1d2 {[%clk 0:02:23]}  Re8 {[%clk 0:02:34]} 12. Nc4 {[%clk 0:02:23]}  Bf8 {[%clk 0:02:34]} 13. Ne3 {[%clk 0:02:22]}  g6 {[%clk 0:02:33]} 14. Be2 {[%clk 0:02:22]}  d6 {[%clk 0:02:19]} 15. O-O {[%clk 0:02:15]}  c5 {[%clk 0:02:19]} 16. a4 {[%clk 0:01:45]}  Re7 {[%clk 0:02:18]} 17. Nd2 {[%clk 0:01:43]}  Rg7 {[%clk 0:02:18]} 18. Ndc4 {[%clk 0:01:42]}  h6 {[%clk 0:02:17]} 19. h4 {[%clk 0:01:39]}  g5 {[%clk 0:02:09]} 20. hxg5 {[%clk 0:01:39]}  hxg5 {[%clk 0:02:10]} 21. fxg5 {[%clk 0:01:40]}  Rxg5 {[%clk 0:02:11]} 22. Ng2 {[%clk 0:01:40]}  Qd7 {[%clk 0:01:45]} 23. b4 {[%clk 0:01:37]}  cxb4 {[%clk 0:01:39]} 24. cxb4 {[%clk 0:01:38]}  Qh7 {[%clk 0:01:34]} 25. Qd2 {[%clk 0:01:33]}  Rg6 {[%clk 0:00:59]} 26. Qf4 {[%clk 0:01:15]}  Nxd5 {[%clk 0:00:54]} 27. Qd2 {[%clk 0:01:03]}  Be6 {[%clk 0:00:54]} 28. Ra3 {[%clk 0:00:57]}  Rc8 {[%clk 0:00:47]} 29. Nce3 {[%clk 0:00:55]}  Rh6 {[%clk 0:00:29]} 30. Nh4 {[%clk 0:00:54]}  Nf4 {[%clk 0:00:25]} 31. Neg2 {[%clk 0:00:47]}  Nxe2+ {[%clk 0:00:24]} 32. Qxe2 {[%clk 0:00:47]}  Bc4 {[%clk 0:00:24]} 33. Qc2 {[%clk 0:00:46]}  d5 {[%clk 0:00:24]} 34. Rc1 {[%clk 0:00:43]}  Bxb4 {[%clk 0:00:23]} 35. Raa1 {[%clk 0:00:35]}  Bd6 {[%clk 0:00:18]} 36. Qd2 {[%clk 0:00:29]}  f4 {[%clk 0:00:17]} 37. Nxf4 {[%clk 0:00:29]}  Rxh4 {[%clk 0:00:16]} 38. gxh4 {[%clk 0:00:24]}  Qxh4 {[%clk 0:00:17]} 39. Rxc4 {[%clk 0:00:14]}  Qg5+ {[%clk 0:00:15]} 40. Kf1 {[%clk 0:00:12]}  Rxc4 {[%clk 0:00:15]} 41. Qxd5+ {[%clk 0:00:12]}  Qxd5 {[%clk 0:00:15]} 42. Nxd5 {[%clk 0:00:13]}  Kf7 {[%clk 0:00:14]} 43. Rb1 {[%clk 0:00:11]}  b6 {[%clk 0:00:14]} 44. a5 {[%clk 0:00:10]}  bxa5 {[%clk 0:00:14]} 45. Rb7+ {[%clk 0:00:10]}  Ke6 {[%clk 0:00:14]} 46. Ne3 {[%clk 0:00:10]}  Bc5 {[%clk 0:00:15]} 47. Nxc4 {[%clk 0:00:09]}  a4 {[%clk 0:00:15]} 48. Rb5 {[%clk 0:00:09]}  Kd5 {[%clk 0:00:14]} 49. Nd2 {[%clk 0:00:08]}  a3 {[%clk 0:00:14]} 50. Nxe4 {[%clk 0:00:08]}  a2 {[%clk 0:00:12]} 51. Rxc5+ {[%clk 0:00:08]}  Kxe4 {[%clk 0:00:12]} 52. Ra5 {[%clk 0:00:09]}  Kf3 {[%clk 0:00:12]} 53. Rxa2 {[%clk 0:00:09]}  a5 {[%clk 0:00:11]} 54. Rxa5 {[%clk 0:00:09]} 1-0


[Site "https://www.chess.com"]

[Event "Titled Tuesday Blitz June 20 Early 2023"]
[White "Simonian, Hrair"]
[Black "Moskvin, Anatoly"]
[WhiteFideId "13302337"]
[BlackFideId "24199990"]
[WhiteElo "2447"]
[BlackElo "2104"]
[Result "1-0"]
[Round "1"]
[TimeControl "180+2"]
[Date "2023.06.20"]
[WhiteClock "0:00:13"]
[BlackClock "0:00:16"]
[Board "69"]

1. e4 {[%clk 0:02:59]}  e5 {[%clk 0:03:00]} 2. Nf3 {[%clk 0:02:59]}  Nc6 {[%clk 0:02:59]} 3. Bb5 {[%clk 0:02:58]}  Nge7 {[%clk 0:02:59]} 4. O-O {[%clk 0:02:58]}  a6 {[%clk 0:03:00]} 5. Ba4 {[%clk 0:02:58]}  d6 {[%clk 0:03:01]} 6. Nc3 {[%clk 0:02:57]}  Bd7 {[%clk 0:03:01]} 7. Bb3 {[%clk 0:02:47]}  Ng6 {[%clk 0:02:59]} 8. d4 {[%clk 0:02:26]}  Be7 {[%clk 0:02:59]} 9. dxe5 {[%clk 0:02:24]}  dxe5 {[%clk 0:02:56]} 10. Nd5 {[%clk 0:02:20]}  h6 {[%clk 0:02:46]} 11. Nxe7 {[%clk 0:02:19]}  Qxe7 {[%clk 0:02:45]} 12. h3 {[%clk 0:02:16]}  Rd8 {[%clk 0:02:26]} 13. Qe2 {[%clk 0:02:14]}  O-O {[%clk 0:02:22]} 14. c3 {[%clk 0:01:57]}  Be6 {[%clk 0:02:15]} 15. Bxe6 {[%clk 0:01:55]}  Qxe6 {[%clk 0:02:16]} 16. Be3 {[%clk 0:01:53]}  Rd7 {[%clk 0:02:15]} 17. b3 {[%clk 0:01:50]}  Rfd8 {[%clk 0:02:15]} 18. Rfd1 {[%clk 0:01:50]}  Nf4 {[%clk 0:01:42]} 19. Bxf4 {[%clk 0:01:47]}  exf4 {[%clk 0:01:43]} 20. Rxd7 {[%clk 0:01:38]}  Qxd7 {[%clk 0:01:41]} 21. Re1 {[%clk 0:01:39]}  Qd3 {[%clk 0:01:36]} 22. e5 {[%clk 0:01:32]}  Qxe2 {[%clk 0:01:19]} 23. Rxe2 {[%clk 0:01:33]}  Rd3 {[%clk 0:01:13]} 24. c4 {[%clk 0:01:31]}  Rd1+ {[%clk 0:01:09]} 25. Kh2 {[%clk 0:01:31]}  Nb4 {[%clk 0:01:02]} 26. h4 {[%clk 0:01:07]}  Nd3 {[%clk 0:01:02]} 27. h5 {[%clk 0:00:50]}  Rf1 {[%clk 0:01:01]} 28. g3 {[%clk 0:00:33]}  Ra1 {[%clk 0:00:45]} 29. Kg2 {[%clk 0:00:29]}  Kf8 {[%clk 0:00:40]} 30. Rd2 {[%clk 0:00:20]}  Nb4 {[%clk 0:00:41]} 31. gxf4 {[%clk 0:00:20]}  Rxa2 {[%clk 0:00:40]} 32. Rd7 {[%clk 0:00:20]}  c5 {[%clk 0:00:38]} 33. e6 {[%clk 0:00:18]}  fxe6 {[%clk 0:00:37]} 34. Ne5 {[%clk 0:00:18]}  Nc6 {[%clk 0:00:36]} 35. Ng6+ {[%clk 0:00:17]}  Kg8 {[%clk 0:00:36]} 36. Rxb7 {[%clk 0:00:16]}  Rd2 {[%clk 0:00:36]} 37. Rc7 {[%clk 0:00:16]}  Rd6 {[%clk 0:00:31]} 38. Rc8+ {[%clk 0:00:16]}  Nd8 {[%clk 0:00:28]} 39. Rxc5 {[%clk 0:00:16]}  Kf7 {[%clk 0:00:29]} 40. Rc7+ {[%clk 0:00:16]}  Kf6 {[%clk 0:00:29]} 41. Ne5 {[%clk 0:00:16]}  Rb6 {[%clk 0:00:30]} 42. Rd7 {[%clk 0:00:16]}  Rb8 {[%clk 0:00:24]} 43. c5 {[%clk 0:00:15]}  Kf5 {[%clk 0:00:24]} 44. Kg3 {[%clk 0:00:12]}  Rxb3+ {[%clk 0:00:25]} 45. f3 {[%clk 0:00:12]}  Rb8 {[%clk 0:00:20]} 46. c6 {[%clk 0:00:13]}  Nxc6 {[%clk 0:00:16]} 47. Rf7# {[%clk 0:00:13]} 1-0


[Site "https://www.chess.com"]

[Event "Titled Tuesday Blitz June 20 Early 2023"]
[White "Rohde, Michael"]
[Black "Hammer, Jon Ludvig"]
[WhiteFideId "2000172"]
[BlackFideId "1503707"]
[WhiteElo "2274"]
[BlackElo "2592"]
[Result "0-1"]
[Round "1"]
[TimeControl "180+2"]
[Date "2023.06.20"]
[WhiteClock "0:00:00"]
[BlackClock "0:00:03"]
[Board "70"]

1. Nf3 {[%clk 0:02:57]}  d5 {[%clk 0:02:59]} 2. c4 {[%clk 0:02:56]}  d4 {[%clk 0:02:58]} 3. a3 {[%clk 0:02:56]}  a5 {[%clk 0:02:55]} 4. e3 {[%clk 0:02:53]}  Nc6 {[%clk 0:02:54]} 5. exd4 {[%clk 0:02:50]}  Nxd4 {[%clk 0:02:54]} 6. Nxd4 {[%clk 0:02:50]}  Qxd4 {[%clk 0:02:54]} 7. Nc3 {[%clk 0:02:51]}  Nh6 {[%clk 0:02:54]} 8. Nb5 {[%clk 0:02:45]}  Qd7 {[%clk 0:02:51]} 9. d4 {[%clk 0:02:41]}  c6 {[%clk 0:02:49]} 10. Nc3 {[%clk 0:02:40]}  Nf5 {[%clk 0:02:47]} 11. d5 {[%clk 0:02:38]}  e5 {[%clk 0:02:41]} 12. Bd3 {[%clk 0:02:29]}  Nd4 {[%clk 0:02:37]} 13. O-O {[%clk 0:02:25]}  Bd6 {[%clk 0:02:36]} 14. Na4 {[%clk 0:02:17]}  Bc7 {[%clk 0:02:28]} 15. Be3 {[%clk 0:01:35]}  O-O {[%clk 0:02:22]} 16. Nc5 {[%clk 0:01:14]}  Qe7 {[%clk 0:02:16]} 17. Ne4 {[%clk 0:01:13]}  f5 {[%clk 0:02:12]} 18. Bg5 {[%clk 0:01:08]}  Qf7 {[%clk 0:02:06]} 19. Nc3 {[%clk 0:01:03]}  Bd7 {[%clk 0:01:13]} 20. Be3 {[%clk 0:01:01]}  Rae8 {[%clk 0:01:10]} 21. Bxd4 {[%clk 0:00:56]}  exd4 {[%clk 0:01:10]} 22. Ne2 {[%clk 0:00:51]}  cxd5 {[%clk 0:01:09]} 23. cxd5 {[%clk 0:00:51]}  Qxd5 {[%clk 0:01:08]} 24. Rc1 {[%clk 0:00:49]}  Qd6 {[%clk 0:01:05]} 25. Ng3 {[%clk 0:00:43]}  Bc6 {[%clk 0:01:03]} 26. b4 {[%clk 0:00:35]}  axb4 {[%clk 0:01:02]} 27. axb4 {[%clk 0:00:35]}  Qxb4 {[%clk 0:00:58]} 28. Nxf5 {[%clk 0:00:33]}  Qa5 {[%clk 0:00:20]} 29. Nxd4 {[%clk 0:00:27]}  Qe5 {[%clk 0:00:16]} 30. g3 {[%clk 0:00:26]}  Bb6 {[%clk 0:00:02]} 31. Nxc6 {[%clk 0:00:23]}  bxc6 {[%clk 0:00:02]} 32. Qc2 {[%clk 0:00:20]}  c5 {[%clk 0:00:02]} 33. Bxh7+ {[%clk 0:00:19]}  Kh8 {[%clk 0:00:02]} 34. Rce1 {[%clk 0:00:07]}  Qf6 {[%clk 0:00:02]} 35. Bg6 {[%clk 0:00:05]}  Rxe1 {[%clk 0:00:01]} 36. Rxe1 {[%clk 0:00:04]}  c4 {[%clk 0:00:02]} 37. Rf1 {[%clk 0:00:04]}  c3 {[%clk 0:00:03]} 38. Be4 {[%clk 0:00:02]}  Bd4 {[%clk 0:00:03]} 39. Qe2 {[%clk 0:00:02]}  g6 {[%clk 0:00:03]} 40. Qg4 {[%clk 0:00:01]}  Kg7 {[%clk 0:00:04]} 41. h4 {[%clk 0:00:00]}  Kh6 {[%clk 0:00:03]} 0-1


[Site "https://www.chess.com"]